[Event "Early-Titled-Tuesday-Blitz-January-16-2024"]
[Site "Chess.com"]
[Date "2024.01.16"]
[Round "7"]
[White "talaicito"]
[Black "stratacticos"]
[Result "1-0"]
[WhiteElo "2283"]
[BlackElo "1977"]
[TimeControl "180+1"]
[EndTime "9:21:24 PST"]
[Termination "talaicito won by resignation"]

1. d4 {[%clk 0:03:00.9]} 1... Nf6 {[%clk 0:02:55.3]} 2. Nc3 {[%clk 0:03:01.1]}
2... c5 {[%clk 0:02:52.2]} 3. d5 {[%clk 0:02:59.4]} 3... d6 {[%clk 0:02:50.6]}
4. h4 {[%clk 0:02:58.6]} 4... h5 {[%clk 0:02:49.6]} 5. Bg5 {[%clk 0:02:56.3]}
5... Nbd7 {[%clk 0:02:45.6]} 6. e4 {[%clk 0:02:54.7]} 6... g6 {[%clk 0:02:45]}
7. Nf3 {[%clk 0:02:43]} 7... Bg7 {[%clk 0:02:44.6]} 8. Be2 {[%clk 0:02:35.9]}
8... Rb8 {[%clk 0:02:34.2]} 9. a4 {[%clk 0:02:33.4]} 9... b6 {[%clk 0:02:33.4]}
10. O-O {[%clk 0:02:32.3]} 10... O-O {[%clk 0:02:28.9]} 11. Qd2 {[%clk
0:02:27.9]} 11... Ng4 {[%clk 0:02:27.9]} 12. Nb5 {[%clk 0:02:05.4]} 12... Rb7
{[%clk 0:02:21.2]} 13. c3 {[%clk 0:02:00.1]} 13... a6 {[%clk 0:02:20.5]} 14.
Nxd6 {[%clk 0:01:58.8]} 14... f6 {[%clk 0:02:08]} 15. Nxb7 {[%clk 0:01:53.5]}
15... Bxb7 {[%clk 0:02:07.8]} 16. Bf4 {[%clk 0:01:48.5]} 16... f5 {[%clk
0:01:57.1]} 17. Ng5 {[%clk 0:01:30.3]} 17... Rf6 {[%clk 0:01:37.3]} 18. Bxg4
{[%clk 0:01:24.8]} 18... fxg4 {[%clk 0:01:20.4]} 19. Ne6 {[%clk 0:01:14.6]}
19... Qc8 {[%clk 0:01:13.5]} 20. Bh6 {[%clk 0:01:02]} 20... Bh8 {[%clk
0:00:39.7]} 21. f3 {[%clk 0:01:00.1]} 21... Ne5 {[%clk 0:00:37.6]} 22. Bf4
{[%clk 0:00:40.3]} 22... Rf7 {[%clk 0:00:16.2]} 23. Bxe5 {[%clk 0:00:40.1]}
23... Bxe5 {[%clk 0:00:15.4]} 24. Qg5 {[%clk 0:00:40.7]} 24... Kh7 {[%clk
0:00:11.1]} 25. Qxe5 {[%clk 0:00:40.1]} 1-0

[Event "Early-Titled-Tuesday-Blitz-January-16-2024"]
[Site "Chess.com"]
[Date "2024.01.16"]
[Round "7"]
[White "Zakaryan_David"]
[Black "Matols"]
[Result "0-1"]
[WhiteElo "2643"]
[BlackElo "2398"]
[TimeControl "180+1"]
[EndTime "9:21:28 PST"]
[Termination "Matols won by checkmate"]

1. e4 {[%clk 0:03:00]} 1... c6 {[%clk 0:03:00]} 2. d4 {[%clk 0:02:56.6]} 2... d5
{[%clk 0:03:00.3]} 3. e5 {[%clk 0:02:57.1]} 3... c5 {[%clk 0:03:00.2]} 4. dxc5
{[%clk 0:02:55.4]} 4... e6 {[%clk 0:03:00.4]} 5. a3 {[%clk 0:02:56]} 5... Bxc5
{[%clk 0:03:00.4]} 6. Nf3 {[%clk 0:02:56.4]} 6... f6 {[%clk 0:02:55.6]} 7. b4
{[%clk 0:02:54.9]} 7... Be7 {[%clk 0:02:52.5]} 8. Bb2 {[%clk 0:02:54]} 8... Nc6
{[%clk 0:02:50.9]} 9. c4 {[%clk 0:02:53]} 9... Nxe5 {[%clk 0:02:43.9]} 10. Nxe5
{[%clk 0:02:48.4]} 10... fxe5 {[%clk 0:02:44.8]} 11. Bxe5 {[%clk 0:02:44.1]}
11... Nf6 {[%clk 0:02:40.2]} 12. Nc3 {[%clk 0:02:43.3]} 12... O-O {[%clk
0:02:37.3]} 13. Be2 {[%clk 0:02:43.1]} 13... Bd6 {[%clk 0:02:28.2]} 14. Bxd6
{[%clk 0:02:41.1]} 14... Qxd6 {[%clk 0:02:29.1]} 15. O-O {[%clk 0:02:36.7]}
15... d4 {[%clk 0:02:23.2]} 16. Nb5 {[%clk 0:02:26.6]} 16... Qf4 {[%clk
0:02:19.2]} 17. Qxd4 {[%clk 0:02:19.8]} 17... e5 {[%clk 0:02:11.6]} 18. Qxf4
{[%clk 0:01:57.5]} 18... exf4 {[%clk 0:02:12.5]} 19. Bf3 {[%clk 0:01:58.4]}
19... a6 {[%clk 0:02:04.1]} 20. Nd6 {[%clk 0:01:58.3]} 20... Rb8 {[%clk
0:01:59.4]} 21. Rfe1 {[%clk 0:01:57]} 21... Rd8 {[%clk 0:01:56.2]} 22. c5 {[%clk
0:01:22.9]} 22... b6 {[%clk 0:01:50.9]} 23. Re7 {[%clk 0:00:58.3]} 23... bxc5
{[%clk 0:01:49.1]} 24. bxc5 {[%clk 0:00:57.3]} 24... Bg4 {[%clk 0:01:32.1]} 25.
Bxg4 {[%clk 0:00:55.1]} 25... Nxg4 {[%clk 0:01:33]} 26. Rd1 {[%clk 0:00:40.9]}
26... Rb2 {[%clk 0:01:29.4]} 27. c6 {[%clk 0:00:39.8]} 27... Rxd6 {[%clk
0:01:21.2]} 28. Rde1 {[%clk 0:00:14.8]} 28... Rxc6 {[%clk 0:01:19]} 29. h3
{[%clk 0:00:15.2]} 29... Nxf2 {[%clk 0:01:17.6]} 30. Rd7 {[%clk 0:00:15.3]}
30... h6 {[%clk 0:01:15.3]} 31. Ree7 {[%clk 0:00:08.6]} 31... Rg6 {[%clk
0:01:12.4]} 32. Re8+ {[%clk 0:00:09]} 32... Kh7 {[%clk 0:01:11.8]} 33. Rdd8
{[%clk 0:00:09.8]} 33... Nxh3+ {[%clk 0:01:08.1]} 34. Kf1 {[%clk 0:00:08.7]}
34... Rgxg2 {[%clk 0:01:07.1]} 35. Rh8+ {[%clk 0:00:08.2]} 35... Kg6 {[%clk
0:01:07.1]} 36. Rd5 {[%clk 0:00:09.1]} 36... Rg1# {[%clk 0:01:03.9]} 0-1

[Event "Early-Titled-Tuesday-Blitz-January-16-2024"]
[Site "Chess.com"]
[Date "2024.01.16"]
[Round "7"]
[White "ValentinDragnev"]
[Black "sergoy"]
[Result "0-1"]
[WhiteElo "2780"]
[BlackElo "3011"]
[TimeControl "180+1"]
[EndTime "9:21:32 PST"]
[Termination "sergoy won on time"]

1. e4 {[%clk 0:03:00.9]} 1... c5 {[%clk 0:02:59.8]} 2. Nf3 {[%clk 0:03:00]} 2...
d6 {[%clk 0:03:00.4]} 3. Nc3 {[%clk 0:02:58.5]} 3... a6 {[%clk 0:02:59.7]} 4. d4
{[%clk 0:02:55.5]} 4... cxd4 {[%clk 0:03:00]} 5. Qxd4 {[%clk 0:02:56.4]} 5...
Nc6 {[%clk 0:02:59]} 6. Qd3 {[%clk 0:02:56.3]} 6... Nf6 {[%clk 0:02:59.3]} 7.
Nd5 {[%clk 0:02:57]} 7... Bg4 {[%clk 0:02:45.4]} 8. Be3 {[%clk 0:02:51.6]} 8...
Nxd5 {[%clk 0:02:38]} 9. exd5 {[%clk 0:02:51.7]} 9... Bxf3 {[%clk 0:02:38.5]}
10. gxf3 {[%clk 0:02:51.2]} 10... Ne5 {[%clk 0:02:39.1]} 11. Qe4 {[%clk
0:02:48.6]} 11... g6 {[%clk 0:02:37.2]} 12. f4 {[%clk 0:02:46]} 12... f5 {[%clk
0:02:31.8]} 13. Qb4 {[%clk 0:02:42.1]} 13... Nd7 {[%clk 0:02:20.8]} 14. Bd4
{[%clk 0:02:39.9]} 14... Rg8 {[%clk 0:02:20.5]} 15. h4 {[%clk 0:02:35.6]} 15...
h5 {[%clk 0:02:18.3]} 16. Rg1 {[%clk 0:02:32.6]} 16... b5 {[%clk 0:02:14.8]} 17.
Be2 {[%clk 0:02:29.2]} 17... Kf7 {[%clk 0:02:15]} 18. a4 {[%clk 0:02:19.2]}
18... bxa4 {[%clk 0:02:08.5]} 19. Rxa4 {[%clk 0:02:18.5]} 19... Bh6 {[%clk
0:02:05.6]} 20. Be3 {[%clk 0:01:43.4]} 20... Rb8 {[%clk 0:02:03.8]} 21. Qa3
{[%clk 0:01:43.4]} 21... Qc7 {[%clk 0:01:59.7]} 22. c3 {[%clk 0:01:28.9]} 22...
Qb7 {[%clk 0:01:59.7]} 23. Rb4 {[%clk 0:01:23.4]} 23... Qc7 {[%clk 0:01:58.4]}
24. Bxa6 {[%clk 0:01:18.5]} 24... Rxb4 {[%clk 0:01:55.2]} 25. Qxb4 {[%clk
0:01:19.4]} 25... Rb8 {[%clk 0:01:54.9]} 26. Bb5 {[%clk 0:01:12.9]} 26... Nf6
{[%clk 0:01:47.1]} 27. c4 {[%clk 0:01:08.3]} 27... Bg7 {[%clk 0:01:43.1]} 28.
Ke2 {[%clk 0:01:08.2]} 28... Ng4 {[%clk 0:01:33.6]} 29. Ra1 {[%clk 0:01:06.2]}
29... Nxe3 {[%clk 0:01:32.7]} 30. fxe3 {[%clk 0:01:07.1]} 30... Bf6 {[%clk
0:01:32.9]} 31. Ra6 {[%clk 0:00:55.1]} 31... Bxh4 {[%clk 0:01:27.6]} 32. Qa3
{[%clk 0:00:40.1]} 32... Bf6 {[%clk 0:01:24.5]} 33. b4 {[%clk 0:00:29.2]} 33...
h4 {[%clk 0:01:24.4]} 34. Ra7 {[%clk 0:00:28.4]} 34... Qd8 {[%clk 0:01:24.2]}
35. Qd3 {[%clk 0:00:14.4]} 35... h3 {[%clk 0:01:23.3]} 36. c5 {[%clk 0:00:14.5]}
36... h2 {[%clk 0:01:22.5]} 37. c6 {[%clk 0:00:14.8]} 37... h1=Q {[%clk
0:01:19.9]} 38. c7 {[%clk 0:00:14.4]} 38... Qdh8 {[%clk 0:01:18.2]} 39. cxb8=Q
{[%clk 0:00:12.6]} 39... Q8h5+ {[%clk 0:01:15.9]} 0-1

[Event "Early-Titled-Tuesday-Blitz-January-16-2024"]
[Site "Chess.com"]
[Date "2024.01.16"]
[Round "7"]
[White "forevery0ung"]
[Black "SantoBlue"]
[Result "0-1"]
[WhiteElo "2843"]
[BlackElo "2951"]
[TimeControl "180+1"]
[EndTime "9:21:33 PST"]
[Termination "SantoBlue won by resignation"]

1. e4 {[%clk 0:03:00.9]} 1... d6 {[%clk 0:03:00.1]} 2. d4 {[%clk 0:03:00]} 2...
Nf6 {[%clk 0:03:00.8]} 3. Nc3 {[%clk 0:03:00]} 3... e5 {[%clk 0:03:01.5]} 4.
dxe5 {[%clk 0:02:59]} 4... dxe5 {[%clk 0:03:01.6]} 5. Qxd8+ {[%clk 0:02:59.7]}
5... Kxd8 {[%clk 0:03:02.5]} 6. Bc4 {[%clk 0:02:59.1]} 6... Ke8 {[%clk
0:03:03.1]} 7. f3 {[%clk 0:02:56.5]} 7... c6 {[%clk 0:02:59.7]} 8. a4 {[%clk
0:02:55.1]} 8... Bb4 {[%clk 0:02:57.5]} 9. Ne2 {[%clk 0:02:54.7]} 9... Ba5
{[%clk 0:02:54.3]} 10. Be3 {[%clk 0:02:53]} 10... Nbd7 {[%clk 0:02:52]} 11.
O-O-O {[%clk 0:02:52.7]} 11... Bb6 {[%clk 0:02:44.4]} 12. Bxb6 {[%clk
0:02:46.8]} 12... Nxb6 {[%clk 0:02:44.3]} 13. Bb3 {[%clk 0:02:46.7]} 13... Ke7
{[%clk 0:02:36]} 14. g4 {[%clk 0:02:42.9]} 14... a5 {[%clk 0:02:32]} 15. Ng3
{[%clk 0:02:41]} 15... g6 {[%clk 0:02:32.1]} 16. h4 {[%clk 0:02:26.9]} 16... h5
{[%clk 0:02:31.9]} 17. g5 {[%clk 0:02:13.2]} 17... Nfd7 {[%clk 0:02:32.1]} 18.
Rd2 {[%clk 0:01:09.5]} 18... Nc5 {[%clk 0:02:31.8]} 19. Rhd1 {[%clk 0:01:10]}
19... Nxb3+ {[%clk 0:02:24.9]} 20. cxb3 {[%clk 0:01:10.9]} 20... Be6 {[%clk
0:02:25]} 21. Kc2 {[%clk 0:01:09.2]} 21... Nd7 {[%clk 0:02:25.5]} 22. Nge2
{[%clk 0:00:47.7]} 22... Nc5 {[%clk 0:02:25.7]} 23. Nc1 {[%clk 0:00:48.3]} 23...
Ra6 {[%clk 0:02:26.3]} 24. Re1 {[%clk 0:00:10]} 24... Rb6 {[%clk 0:02:24.7]} 25.
Re3 {[%clk 0:00:10.5]} 25... Bxb3+ {[%clk 0:02:16.6]} 26. Nxb3 {[%clk 0:00:08]}
26... Nxb3 {[%clk 0:02:17.2]} 27. Nd5+ {[%clk 0:00:05.9]} 27... cxd5 {[%clk
0:02:16.4]} 28. Rxb3 {[%clk 0:00:06.5]} 28... Rc6+ {[%clk 0:01:50]} 29. Kb1
{[%clk 0:00:05.1]} 29... d4 {[%clk 0:01:20.1]} 30. Rxb7+ {[%clk 0:00:04.5]}
30... Ke6 {[%clk 0:01:20.8]} 31. Rc2 {[%clk 0:00:04.2]} 31... Rhc8 {[%clk
0:01:18.5]} 32. Rxc6+ {[%clk 0:00:02.9]} 32... Rxc6 {[%clk 0:01:19.4]} 33. Rb5
{[%clk 0:00:02.4]} 33... f6 {[%clk 0:01:20.1]} 34. Rd5 {[%clk 0:00:01.9]} 34...
fxg5 {[%clk 0:01:19.3]} 35. hxg5 {[%clk 0:00:01.3]} 35... h4 {[%clk 0:01:20]}
36. f4 {[%clk 0:00:01.3]} 36... exf4 {[%clk 0:01:19.9]} 37. Rxd4 {[%clk
0:00:02.1]} 37... h3 {[%clk 0:01:20.5]} 38. Rd3 {[%clk 0:00:02.4]} 38... Ke5
{[%clk 0:01:20.3]} 39. Rxh3 {[%clk 0:00:03.3]} 39... Kxe4 {[%clk 0:01:20.9]} 40.
Rh8 {[%clk 0:00:03.4]} 40... f3 {[%clk 0:01:21.2]} 41. Rf8 {[%clk 0:00:03.1]}
41... Rc5 {[%clk 0:01:18.2]} 42. b3 {[%clk 0:00:01.3]} 42... Rf5 {[%clk
0:01:17.5]} 43. Kc2 {[%clk 0:00:02.2]} 43... Rxf8 {[%clk 0:01:17.6]} 0-1

[Event "Early-Titled-Tuesday-Blitz-January-16-2024"]
[Site "Chess.com"]
[Date "2024.01.16"]
[Round "7"]
[White "Statham_01"]
[Black "Iball95"]
[Result "0-1"]
[WhiteElo "2551"]
[BlackElo "2755"]
[TimeControl "180+1"]
[EndTime "9:21:33 PST"]
[Termination "Iball95 won by resignation"]

1. e4 {[%clk 0:03:00.9]} 1... c5 {[%clk 0:02:58.8]} 2. Nf3 {[%clk 0:03:00.8]}
2... e6 {[%clk 0:02:59.2]} 3. d4 {[%clk 0:03:00.6]} 3... cxd4 {[%clk 0:03:00.1]}
4. Nxd4 {[%clk 0:03:01.5]} 4... Nf6 {[%clk 0:03:00.6]} 5. Nc3 {[%clk 0:03:01.9]}
5... Nc6 {[%clk 0:03:00.1]} 6. Ndb5 {[%clk 0:03:01.3]} 6... Bc5 {[%clk
0:02:59.7]} 7. Bf4 {[%clk 0:02:59.5]} 7... O-O {[%clk 0:03:00]} 8. Bc7 {[%clk
0:02:59.3]} 8... Qe7 {[%clk 0:03:00.7]} 9. Bd6 {[%clk 0:02:58.9]} 9... Bxd6
{[%clk 0:03:01.3]} 10. Qxd6 {[%clk 0:02:59.4]} 10... Qd8 {[%clk 0:03:01.7]} 11.
Nc7 {[%clk 0:02:51.7]} 11... Rb8 {[%clk 0:03:01.2]} 12. e5 {[%clk 0:02:48.6]}
12... Ng4 {[%clk 0:02:58.8]} 13. f4 {[%clk 0:02:40.3]} 13... Ne3 {[%clk
0:02:58.5]} 14. Bd3 {[%clk 0:01:51.1]} 14... Nxg2+ {[%clk 0:02:50.4]} 15. Kd2
{[%clk 0:01:50.7]} 15... Nxf4 {[%clk 0:02:45.5]} 16. Rhg1 {[%clk 0:01:44.6]}
16... a6 {[%clk 0:02:14.1]} 17. Raf1 {[%clk 0:01:36.6]} 17... Nxd3 {[%clk
0:02:13.7]} 18. cxd3 {[%clk 0:01:33.1]} 18... Qe7 {[%clk 0:02:12.7]} 19. Ne4
{[%clk 0:00:34.6]} 19... Qxd6 {[%clk 0:02:11.4]} 20. exd6 {[%clk 0:00:09.2]}
20... f5 {[%clk 0:01:58.5]} 21. Ng3 {[%clk 0:00:09.6]} 21... b6 {[%clk 0:01:49]}
22. h4 {[%clk 0:00:09.3]} 22... Bb7 {[%clk 0:01:47.2]} 23. Nh5 {[%clk
0:00:09.7]} 23... Rf7 {[%clk 0:01:43]} 24. Rg3 {[%clk 0:00:08.3]} 24... Ne5
{[%clk 0:01:41.7]} 25. d4 {[%clk 0:00:04.8]} 25... Ng4 {[%clk 0:01:39]} 26. Rb3
{[%clk 0:00:05]} 26... b5 {[%clk 0:01:33.6]} 27. a4 {[%clk 0:00:04.8]} 27... Bc6
{[%clk 0:01:33.8]} 28. axb5 {[%clk 0:00:04.5]} 28... axb5 {[%clk 0:01:34.7]} 29.
Ra1 {[%clk 0:00:04.1]} 29... f4 {[%clk 0:01:22.9]} 30. d5 {[%clk 0:00:03.9]}
30... exd5 {[%clk 0:01:20.5]} 31. Rg1 {[%clk 0:00:04.6]} 31... Ne5 {[%clk
0:01:19.3]} 32. Rh3 {[%clk 0:00:02.3]} 32... d4 {[%clk 0:01:18.2]} 33. Kd1
{[%clk 0:00:02.9]} 33... f3 {[%clk 0:01:18.1]} 34. Rhg3 {[%clk 0:00:03.1]} 34...
g6 {[%clk 0:01:17.2]} 35. Ke1 {[%clk 0:00:01.6]} 35... f2+ {[%clk 0:01:17.2]}
36. Kf1 {[%clk 0:00:02.3]} 36... Nc4 {[%clk 0:01:13.8]} 37. R1g2 {[%clk
0:00:02.1]} 37... Nd2+ {[%clk 0:01:13.7]} 38. Ke2 {[%clk 0:00:02.5]} 38... f1=Q+
{[%clk 0:01:14.3]} 39. Kxd2 {[%clk 0:00:03.4]} 39... Bxg2 {[%clk 0:01:14.6]} 0-1

[Event "Early-Titled-Tuesday-Blitz-January-16-2024"]
[Site "Chess.com"]
[Date "2024.01.16"]
[Round "7"]
[White "Kostya0705"]
[Black "Lennis93"]
[Result "1-0"]
[WhiteElo "2583"]
[BlackElo "2765"]
[TimeControl "180+1"]
[EndTime "9:21:35 PST"]
[Termination "Kostya0705 won by resignation"]

1. e4 {[%clk 0:03:00.9]} 1... c5 {[%clk 0:02:58.6]} 2. Nf3 {[%clk 0:03:00.3]}
2... Nc6 {[%clk 0:02:59.3]} 3. Nc3 {[%clk 0:02:56]} 3... Qc7 {[%clk 0:02:56.5]}
4. d4 {[%clk 0:02:55.9]} 4... cxd4 {[%clk 0:02:56.4]} 5. Nxd4 {[%clk 0:02:56.8]}
5... e6 {[%clk 0:02:53.5]} 6. g4 {[%clk 0:02:56.2]} 6... a6 {[%clk 0:02:51.7]}
7. h4 {[%clk 0:02:55.5]} 7... Bb4 {[%clk 0:02:49.2]} 8. Nxc6 {[%clk 0:02:54.2]}
8... Qxc6 {[%clk 0:02:48.9]} 9. Qd4 {[%clk 0:02:53.9]} 9... Bxc3+ {[%clk
0:02:48.2]} 10. bxc3 {[%clk 0:02:53.9]} 10... Nf6 {[%clk 0:02:48.6]} 11. f3
{[%clk 0:02:53.5]} 11... d5 {[%clk 0:02:47.7]} 12. e5 {[%clk 0:02:50.5]} 12...
Nd7 {[%clk 0:02:47.1]} 13. Ba3 {[%clk 0:02:51.1]} 13... b6 {[%clk 0:02:28.8]}
14. Bd6 {[%clk 0:02:48.4]} 14... Bb7 {[%clk 0:02:28.2]} 15. Rb1 {[%clk
0:02:39.3]} 15... Rc8 {[%clk 0:02:27.8]} 16. Rb3 {[%clk 0:02:38.9]} 16... b5
{[%clk 0:02:13.7]} 17. Bd3 {[%clk 0:02:34.3]} 17... Nc5 {[%clk 0:02:11]} 18. Ra3
{[%clk 0:02:33.6]} 18... Na4 {[%clk 0:02:08.2]} 19. Kd2 {[%clk 0:02:31.8]} 19...
Nb6 {[%clk 0:02:00.8]} 20. f4 {[%clk 0:02:27.5]} 20... h5 {[%clk 0:01:45.4]} 21.
f5 {[%clk 0:02:16.1]} 21... Nc4+ {[%clk 0:01:42.6]} 22. Bxc4 {[%clk 0:02:11.5]}
22... dxc4 {[%clk 0:01:43.5]} 23. Rf1 {[%clk 0:01:57.2]} 23... Qg2+ {[%clk
0:01:40.4]} 24. Rf2 {[%clk 0:01:56.1]} 24... Qxg4 {[%clk 0:01:40.5]} 25. fxe6
{[%clk 0:01:54.8]} 25... Qxe6 {[%clk 0:01:10.7]} 26. Qb6 {[%clk 0:01:47.4]}
26... Qd5+ {[%clk 0:00:48.8]} 27. Kc1 {[%clk 0:01:46]} 27... Rh6 {[%clk
0:00:49.3]} 28. Rxa6 {[%clk 0:01:40.8]} 28... Bxa6 {[%clk 0:00:46.4]} 29. Qxa6
{[%clk 0:01:41.1]} 29... Qc6 {[%clk 0:00:44]} 30. Qa7 {[%clk 0:01:38.1]} 30...
Qd7 {[%clk 0:00:43.7]} 31. Qd4 {[%clk 0:01:33.7]} 31... Rg6 {[%clk 0:00:40.7]}
32. Kb2 {[%clk 0:01:31.7]} 32... b4 {[%clk 0:00:38.2]} 33. cxb4 {[%clk
0:01:30.9]} 33... c3+ {[%clk 0:00:38.6]} 34. Ka3 {[%clk 0:01:16.3]} 34... Rg3
{[%clk 0:00:30.9]} 35. Qd5 {[%clk 0:01:04.6]} 35... Qa7+ {[%clk 0:00:27]} 36.
Kb3 {[%clk 0:01:04.7]} 36... Qxf2 {[%clk 0:00:27.6]} 37. Qb7 {[%clk 0:01:03.4]}
37... Qf6 {[%clk 0:00:04.1]} 38. exf6 {[%clk 0:00:58.6]} 1-0

[Event "Early-Titled-Tuesday-Blitz-January-16-2024"]
[Site "Chess.com"]
[Date "2024.01.16"]
[Round "7"]
[White "NovozhilovSemen"]
[Black "jcibarra"]
[Result "0-1"]
[WhiteElo "2668"]
[BlackElo "2867"]
[TimeControl "180+1"]
[EndTime "9:21:40 PST"]
[Termination "jcibarra won by resignation"]

1. d4 {[%clk 0:03:00.9]} 1... Nf6 {[%clk 0:02:59.9]} 2. Nf3 {[%clk 0:03:00.6]}
2... d6 {[%clk 0:03:00.5]} 3. Nc3 {[%clk 0:03:00.3]} 3... Bf5 {[%clk 0:03:00.1]}
4. Nh4 {[%clk 0:02:58]} 4... Bd7 {[%clk 0:03:00.5]} 5. e4 {[%clk 0:02:58.1]}
5... e5 {[%clk 0:03:01]} 6. Nf3 {[%clk 0:02:56.4]} 6... exd4 {[%clk 0:03:01.6]}
7. Nxd4 {[%clk 0:02:56.5]} 7... g6 {[%clk 0:03:02.2]} 8. Be3 {[%clk 0:02:55.9]}
8... Bg7 {[%clk 0:03:02.6]} 9. Qd2 {[%clk 0:02:53.4]} 9... Ng4 {[%clk
0:03:01.6]} 10. Bg5 {[%clk 0:02:46.8]} 10... f6 {[%clk 0:02:52.2]} 11. Bh4
{[%clk 0:02:39.4]} 11... Nc6 {[%clk 0:02:52.5]} 12. Nxc6 {[%clk 0:02:01.8]}
12... bxc6 {[%clk 0:02:51.9]} 13. h3 {[%clk 0:01:59.5]} 13... Ne5 {[%clk
0:02:50.3]} 14. f4 {[%clk 0:01:57.5]} 14... Nf7 {[%clk 0:02:50.3]} 15. Bc4
{[%clk 0:01:56.5]} 15... Qe7 {[%clk 0:02:50.4]} 16. O-O {[%clk 0:01:51.4]} 16...
O-O {[%clk 0:02:50.3]} 17. Rad1 {[%clk 0:01:49.3]} 17... Qe8 {[%clk 0:02:32]}
18. Rfe1 {[%clk 0:01:46.6]} 18... Kh8 {[%clk 0:02:31.3]} 19. Ba6 {[%clk
0:01:39.2]} 19... Rb8 {[%clk 0:02:30.6]} 20. b3 {[%clk 0:01:38.3]} 20... g5
{[%clk 0:02:25.1]} 21. Bf2 {[%clk 0:01:37.5]} 21... gxf4 {[%clk 0:02:22.2]} 22.
Qxf4 {[%clk 0:01:35.2]} 22... Ne5 {[%clk 0:02:18.7]} 23. Bf1 {[%clk 0:01:29.2]}
23... Qg6 {[%clk 0:02:17.1]} 24. Bxa7 {[%clk 0:01:25.8]} 24... Rbe8 {[%clk
0:02:15.7]} 25. Kh2 {[%clk 0:01:24.7]} 25... f5 {[%clk 0:02:14.8]} 26. Qg3
{[%clk 0:01:20.8]} 26... Ng4+ {[%clk 0:02:06.9]} 27. Kh1 {[%clk 0:01:07.5]}
27... Be5 {[%clk 0:02:06.4]} 28. Qd3 {[%clk 0:01:07]} 28... fxe4 {[%clk
0:01:56.3]} 29. Nxe4 {[%clk 0:01:07.9]} 29... Bf5 {[%clk 0:01:25.6]} 30. hxg4
{[%clk 0:01:02.3]} 30... Bxg4 {[%clk 0:01:25.9]} 31. g3 {[%clk 0:00:59.1]} 31...
d5 {[%clk 0:00:36.8]} 32. Nf2 {[%clk 0:00:48.8]} 32... Bf3+ {[%clk 0:00:31.6]}
33. Qxf3 {[%clk 0:00:44.5]} 33... Rxf3 {[%clk 0:00:30.8]} 34. Rxe5 {[%clk
0:00:43.7]} 34... Rxe5 {[%clk 0:00:29.5]} 35. Bd4 {[%clk 0:00:44.4]} 35... Qxg3
{[%clk 0:00:26]} 36. Re1 {[%clk 0:00:36.9]} 36... Qh4+ {[%clk 0:00:25.6]} 37.
Kg1 {[%clk 0:00:36]} 37... Qxd4 {[%clk 0:00:26.1]} 0-1

[Event "Early-Titled-Tuesday-Blitz-January-16-2024"]
[Site "Chess.com"]
[Date "2024.01.16"]
[Round "7"]
[White "Roman_Ovetchkin"]
[Black "Grandelicious"]
[Result "0-1"]
[WhiteElo "2659"]
[BlackElo "2923"]
[TimeControl "180+1"]
[EndTime "9:21:40 PST"]
[Termination "Grandelicious won by resignation"]

1. d4 {[%clk 0:03:00.9]} 1... d6 {[%clk 0:02:59.6]} 2. e4 {[%clk 0:03:00.4]}
2... Nf6 {[%clk 0:02:58.5]} 3. Nc3 {[%clk 0:03:00.8]} 3... a6 {[%clk 0:02:53.2]}
4. f4 {[%clk 0:02:57.8]} 4... d5 {[%clk 0:02:41.5]} 5. e5 {[%clk 0:02:46.6]}
5... Ne4 {[%clk 0:02:42]} 6. Nxe4 {[%clk 0:02:40.2]} 6... dxe4 {[%clk
0:02:42.9]} 7. Be3 {[%clk 0:02:39.8]} 7... h5 {[%clk 0:02:36.7]} 8. Ne2 {[%clk
0:02:40]} 8... h4 {[%clk 0:02:35.5]} 9. c4 {[%clk 0:02:39.6]} 9... Bf5 {[%clk
0:02:34.6]} 10. Nc3 {[%clk 0:02:39.3]} 10... e6 {[%clk 0:02:34.7]} 11. a3 {[%clk
0:02:38.5]} 11... Nd7 {[%clk 0:02:29]} 12. Be2 {[%clk 0:02:32.4]} 12... g5
{[%clk 0:02:25.7]} 13. fxg5 {[%clk 0:02:28.6]} 13... Be7 {[%clk 0:02:26]} 14.
Qd2 {[%clk 0:02:24.2]} 14... Rg8 {[%clk 0:02:26.4]} 15. g4 {[%clk 0:02:07.6]}
15... hxg3 {[%clk 0:02:25.6]} 16. h4 {[%clk 0:02:07.6]} 16... Rh8 {[%clk
0:02:16.7]} 17. O-O-O {[%clk 0:02:05.8]} 17... c5 {[%clk 0:02:11]} 18. Rdg1
{[%clk 0:01:47.5]} 18... cxd4 {[%clk 0:02:01.9]} 19. Bxd4 {[%clk 0:01:47.6]}
19... Nc5 {[%clk 0:01:47.2]} 20. Bxc5 {[%clk 0:01:42.5]} 20... Qxd2+ {[%clk
0:01:35.7]} 21. Kxd2 {[%clk 0:01:43.4]} 21... Bxc5 {[%clk 0:01:36.4]} 22. Rxg3
{[%clk 0:01:43.2]} 22... Bf2 {[%clk 0:01:35.9]} 23. Rg2 {[%clk 0:01:09.7]} 23...
O-O-O+ {[%clk 0:01:22.8]} 24. Kc1 {[%clk 0:01:06.3]} 24... Rxh4 {[%clk
0:01:08.8]} 25. Rxh4 {[%clk 0:01:03.2]} 25... Bxh4 {[%clk 0:01:09.7]} 26. Bh5
{[%clk 0:01:01.6]} 26... e3 {[%clk 0:00:29.7]} 27. Bxf7 {[%clk 0:00:57.7]} 27...
Be1 {[%clk 0:00:30.1]} 28. g6 {[%clk 0:00:32.8]} 28... Bd2+ {[%clk 0:00:29.2]}
0-1